[Event "Titled Tuesday Blitz December 13 Late 2022"]
[White "Miller, Luke C"]
[Black "Adel, Sara"]
[WhiteFideId "2096935"]
[BlackFideId "10616764"]
[WhiteElo "2502"]
[BlackElo "1997"]
[Result "1-0"]
[Round "05"]
[TimeControl "180+1"]
[Date "2022.12.14"]
[WhiteClock "0:00:14"]
[BlackClock "0:00:14"]

1. e4 {[%clk 0:02:58]}  c6 {[%clk 0:02:59]} 2. d4 {[%clk 0:02:58]}  d5 {[%clk 0:03:00]} 3. f3 {[%clk 0:02:58]}  dxe4 {[%clk 0:02:59]} 4. fxe4 {[%clk 0:02:59]}  e5 {[%clk 0:03:00]} 5. Nf3 {[%clk 0:03:00]}  Bg4 {[%clk 0:02:59]} 6. Be3 {[%clk 0:02:57]}  Bxf3 {[%clk 0:02:58]} 7. gxf3 {[%clk 0:02:55]}  Nd7 {[%clk 0:02:48]} 8. Qd2 {[%clk 0:02:48]}  Qh4+ {[%clk 0:02:44]} 9. Bf2 {[%clk 0:02:46]}  Qh6 {[%clk 0:02:44]} 10. Qxh6 {[%clk 0:02:33]}  Nxh6 {[%clk 0:02:44]} 11. Nd2 {[%clk 0:02:32]}  f6 {[%clk 0:02:34]} 12. Bc4 {[%clk 0:02:11]}  exd4 {[%clk 0:02:31]} 13. Bxd4 {[%clk 0:02:10]}  Bc5 {[%clk 0:02:31]} 14. Nb3 {[%clk 0:01:54]}  Bxd4 {[%clk 0:02:28]} 15. Nxd4 {[%clk 0:01:55]}  Ne5 {[%clk 0:02:27]} 16. Be2 {[%clk 0:01:51]}  O-O-O {[%clk 0:02:27]} 17. O-O-O {[%clk 0:01:48]}  Rhe8 {[%clk 0:02:17]} 18. Rhg1 {[%clk 0:01:40]}  g6 {[%clk 0:02:16]} 19. f4 {[%clk 0:01:25]}  Nd7 {[%clk 0:02:12]} 20. Bf3 {[%clk 0:01:22]}  Nc5 {[%clk 0:02:11]} 21. Rge1 {[%clk 0:01:18]}  Nf7 {[%clk 0:02:06]} 22. h4 {[%clk 0:01:11]}  Kc7 {[%clk 0:01:29]} 23. h5 {[%clk 0:01:05]}  g5 {[%clk 0:01:29]} 24. f5 {[%clk 0:00:53]}  a5 {[%clk 0:01:04]} 25. a3 {[%clk 0:00:53]}  a4 {[%clk 0:01:04]} 26. h6 {[%clk 0:00:44]}  Nd6 {[%clk 0:00:59]} 27. Ne6+ {[%clk 0:00:24]}  Nxe6 {[%clk 0:00:58]} 28. fxe6 {[%clk 0:00:21]}  Rxe6 {[%clk 0:00:58]} 29. Rd4 {[%clk 0:00:19]}  b5 {[%clk 0:00:42]} 30. Bg4 {[%clk 0:00:18]}  Re5 {[%clk 0:00:39]} 31. Bf3 {[%clk 0:00:16]}  Rde8 {[%clk 0:00:33]} 32. Red1 {[%clk 0:00:15]}  Nxe4 {[%clk 0:00:31]} 33. Rd7+ {[%clk 0:00:15]}  Kb6 {[%clk 0:00:30]} 34. Rxh7 {[%clk 0:00:16]}  Nf2 {[%clk 0:00:29]} 35. Rd6 {[%clk 0:00:15]}  Re1+ {[%clk 0:00:29]} 36. Kd2 {[%clk 0:00:15]}  R1e3 {[%clk 0:00:24]} 37. Rxc6+ {[%clk 0:00:15]}  Ka5 {[%clk 0:00:14]} 38. Ra7# {[%clk 0:00:14]} 1-0


[Site "https://www.chess.com"]

[Event "Titled Tuesday Blitz December 13 Late 2022"]
[White "Naroditsky, Daniel"]
[Black "Kravtsiv, Martyn"]
[WhiteFideId "2026961"]
[BlackFideId "14113147"]
[WhiteElo "2628"]
[BlackElo "2695"]
[Result "1-0"]
[Round "05"]
[TimeControl "180+1"]
[Date "2022.12.13"]
[WhiteClock "0:00:05"]
[BlackClock "0:00:01"]

1. e4 {[%clk 0:02:42]}  e5 {[%clk 0:02:59]} 2. Nf3 {[%clk 0:02:42]}  Nc6 {[%clk 0:02:59]} 3. Bb5 {[%clk 0:02:42]}  a6 {[%clk 0:02:58]} 4. Ba4 {[%clk 0:02:41]}  Nf6 {[%clk 0:02:58]} 5. O-O {[%clk 0:02:41]}  Be7 {[%clk 0:02:58]} 6. Re1 {[%clk 0:02:42]}  b5 {[%clk 0:02:58]} 7. Bb3 {[%clk 0:02:42]}  O-O {[%clk 0:02:58]} 8. a4 {[%clk 0:02:41]}  b4 {[%clk 0:02:57]} 9. d4 {[%clk 0:02:42]}  d6 {[%clk 0:02:57]} 10. dxe5 {[%clk 0:02:39]}  Nxe5 {[%clk 0:02:57]} 11. Nxe5 {[%clk 0:02:38]}  dxe5 {[%clk 0:02:58]} 12. Qxd8 {[%clk 0:02:33]}  Rxd8 {[%clk 0:02:56]} 13. Nd2 {[%clk 0:02:34]}  Bc5 {[%clk 0:02:50]} 14. Nc4 {[%clk 0:02:10]}  Ng4 {[%clk 0:02:38]} 15. Ne3 {[%clk 0:01:49]}  Nxe3 {[%clk 0:02:17]} 16. Bxe3 {[%clk 0:01:48]}  Bxe3 {[%clk 0:02:17]} 17. Rxe3 {[%clk 0:01:49]}  Bb7 {[%clk 0:02:17]} 18. f3 {[%clk 0:01:40]}  Rd6 {[%clk 0:02:15]} 19. a5 {[%clk 0:01:40]}  Rad8 {[%clk 0:02:13]} 20. Bc4 {[%clk 0:01:35]}  Rd2 {[%clk 0:02:02]} 21. Rc1 {[%clk 0:01:12]}  c5 {[%clk 0:01:35]} 22. b3 {[%clk 0:01:09]}  Kf8 {[%clk 0:01:22]} 23. Kf1 {[%clk 0:00:42]}  Ke7 {[%clk 0:01:14]} 24. Re2 {[%clk 0:00:43]}  Rd1+ {[%clk 0:01:08]} 25. Re1 {[%clk 0:00:38]}  Rxc1 {[%clk 0:00:54]} 26. Rxc1 {[%clk 0:00:39]}  Rd2 {[%clk 0:00:51]} 27. Be2 {[%clk 0:00:36]}  h5 {[%clk 0:00:46]} 28. h4 {[%clk 0:00:36]}  g6 {[%clk 0:00:43]} 29. Ke1 {[%clk 0:00:36]}  Rd6 {[%clk 0:00:43]} 30. c3 {[%clk 0:00:36]}  Kd7 {[%clk 0:00:33]} 31. cxb4 {[%clk 0:00:35]}  cxb4 {[%clk 0:00:33]} 32. Kf2 {[%clk 0:00:26]}  Rd4 {[%clk 0:00:32]} 33. Ke3 {[%clk 0:00:26]}  f5 {[%clk 0:00:31]} 34. Rc4 {[%clk 0:00:14]}  f4+ {[%clk 0:00:28]} 35. Kf2 {[%clk 0:00:14]}  Rxc4 {[%clk 0:00:17]} 36. Bxc4 {[%clk 0:00:15]}  Ke7 {[%clk 0:00:17]} 37. Ke2 {[%clk 0:00:15]}  Kf6 {[%clk 0:00:15]} 38. Bd5 {[%clk 0:00:09]}  Bc8 {[%clk 0:00:13]} 39. Kd3 {[%clk 0:00:09]}  g5 {[%clk 0:00:13]} 40. hxg5+ {[%clk 0:00:09]}  Kxg5 {[%clk 0:00:14]} 41. Kc4 {[%clk 0:00:09]}  Kh4 {[%clk 0:00:13]} 42. Bf7 {[%clk 0:00:05]}  Kg3 {[%clk 0:00:05]} 43. Bxh5 {[%clk 0:00:05]}  Kxg2 {[%clk 0:00:06]} 44. Kd5 {[%clk 0:00:05]}  Kf2 {[%clk 0:00:04]} 45. Kxe5 {[%clk 0:00:05]}  Ke3 {[%clk 0:00:04]} 46. Kd6 {[%clk 0:00:04]}  Kd4 {[%clk 0:00:04]} 47. e5 {[%clk 0:00:04]}  Kc3 {[%clk 0:00:01]} 48. Bf7 {[%clk 0:00:05]} 1-0


[Site "https://www.chess.com"]

[Event "Titled Tuesday Blitz December 13 Late 2022"]
[White "Pakleza, Zbigniew"]
[Black "Tang, Andrew"]
[WhiteFideId "1119290"]
[BlackFideId "2059630"]
[WhiteElo "2410"]
[BlackElo "2582"]
[Result "1-0"]
[Round "05"]
[TimeControl "180+1"]
[Date "2022.12.13"]
[WhiteClock "0:00:23"]
[BlackClock "0:00:01"]

1. d4 {[%clk 0:03:00]}  d5 {[%clk 0:03:00]} 2. Bf4 {[%clk 0:03:01]}  Nf6 {[%clk 0:02:56]} 3. e3 {[%clk 0:03:01]}  e6 {[%clk 0:02:57]} 4. Nd2 {[%clk 0:03:00]}  c5 {[%clk 0:02:50]} 5. c3 {[%clk 0:02:59]}  Nc6 {[%clk 0:02:47]} 6. Ngf3 {[%clk 0:02:59]}  Nh5 {[%clk 0:02:47]} 7. Be5 {[%clk 0:02:59]}  Qb6 {[%clk 0:02:29]} 8. Qb3 {[%clk 0:02:58]}  Nxe5 {[%clk 0:01:48]} 9. Nxe5 {[%clk 0:02:59]}  Bd6 {[%clk 0:01:42]} 10. Bb5+ {[%clk 0:02:33]}  Ke7 {[%clk 0:01:42]} 11. Be2 {[%clk 0:02:34]}  Nf6 {[%clk 0:01:40]} 12. f4 {[%clk 0:02:32]}  Nd7 {[%clk 0:01:16]} 13. Qc2 {[%clk 0:02:22]}  Qc7 {[%clk 0:01:12]} 14. Bd3 {[%clk 0:02:07]}  b6 {[%clk 0:01:08]} 15. Ndf3 {[%clk 0:02:02]}  Nf6 {[%clk 0:00:54]} 16. Ng5 {[%clk 0:01:51]}  Rf8 {[%clk 0:00:52]} 17. Bxh7 {[%clk 0:01:41]}  cxd4 {[%clk 0:00:20]} 18. exd4 {[%clk 0:01:41]}  Bxe5 {[%clk 0:00:20]} 19. fxe5 {[%clk 0:01:38]}  Ng4 {[%clk 0:00:21]} 20. Qe2 {[%clk 0:01:21]}  Nh6 {[%clk 0:00:10]} 21. O-O {[%clk 0:01:13]}  g6 {[%clk 0:00:08]} 22. Rf6 {[%clk 0:01:04]}  Ke8 {[%clk 0:00:05]} 23. Raf1 {[%clk 0:01:00]}  Qe7 {[%clk 0:00:03]} 24. Bxg6 {[%clk 0:00:54]}  Kd8 {[%clk 0:00:02]} 25. Qh5 {[%clk 0:00:45]}  Ng8 {[%clk 0:00:01]} 26. Rxf7 {[%clk 0:00:46]}  Rxf7 {[%clk 0:00:01]} 27. Rxf7 {[%clk 0:00:47]}  Qe8 {[%clk 0:00:02]} 28. Rxa7 {[%clk 0:00:27]}  Qb5 {[%clk 0:00:01]} 29. Nf7+ {[%clk 0:00:23]} 1-0


[Site "https://www.chess.com"]

[Event "Titled Tuesday Blitz December 13 Late 2022"]
[White "Pein, Jonathan"]
[Black "Goryachkina, Aleksandra"]
[WhiteFideId "417092"]
[BlackFideId "4147103"]
[WhiteElo "2225"]
[BlackElo "2484"]
[Result "0-1"]
[Round "05"]
[TimeControl "180+1"]
[Date "2022.12.14"]
[WhiteClock "0:00:17"]
[BlackClock "0:00:06"]

1. e4 {[%clk 0:02:56]}  c5 {[%clk 0:02:59]} 2. Ne2 {[%clk 0:02:56]}  Nc6 {[%clk 0:02:54]} 3. d4 {[%clk 0:02:55]}  cxd4 {[%clk 0:02:54]} 4. Nxd4 {[%clk 0:02:55]}  Nf6 {[%clk 0:02:54]} 5. Nc3 {[%clk 0:02:56]}  e6 {[%clk 0:02:54]} 6. Be2 {[%clk 0:02:49]}  d6 {[%clk 0:02:42]} 7. O-O {[%clk 0:02:49]}  Be7 {[%clk 0:02:42]} 8. Be3 {[%clk 0:02:48]}  O-O {[%clk 0:02:37]} 9. f3 {[%clk 0:02:45]}  Nxd4 {[%clk 0:02:33]} 10. Bxd4 {[%clk 0:02:45]}  a6 {[%clk 0:02:15]} 11. a4 {[%clk 0:02:44]}  Qc7 {[%clk 0:02:08]} 12. Qd2 {[%clk 0:02:43]}  Bd7 {[%clk 0:02:07]} 13. Rfd1 {[%clk 0:02:39]}  Rac8 {[%clk 0:02:05]} 14. Bf1 {[%clk 0:02:36]}  Bc6 {[%clk 0:01:57]} 15. Qf2 {[%clk 0:02:35]}  Nd7 {[%clk 0:01:46]} 16. Qg3 {[%clk 0:02:29]}  g6 {[%clk 0:01:33]} 17. h4 {[%clk 0:02:13]}  Rfd8 {[%clk 0:01:28]} 18. h5 {[%clk 0:02:13]}  Bf8 {[%clk 0:01:27]} 19. hxg6 {[%clk 0:02:12]}  hxg6 {[%clk 0:01:26]} 20. Bd3 {[%clk 0:02:02]}  Ne5 {[%clk 0:01:24]} 21. Kf2 {[%clk 0:01:56]}  Bg7 {[%clk 0:01:20]} 22. Be3 {[%clk 0:01:52]}  d5 {[%clk 0:01:13]} 23. exd5 {[%clk 0:01:45]}  Bxd5 {[%clk 0:01:09]} 24. Qh4 {[%clk 0:01:35]}  Nxd3+ {[%clk 0:00:45]} 25. cxd3 {[%clk 0:01:22]}  Bc6 {[%clk 0:00:35]} 26. a5 {[%clk 0:01:21]}  Qd7 {[%clk 0:00:32]} 27. Ne2 {[%clk 0:01:11]}  Bb5 {[%clk 0:00:30]} 28. Rh1 {[%clk 0:01:02]}  Qxd3 {[%clk 0:00:28]} 29. Rae1 {[%clk 0:00:56]}  Rc2 {[%clk 0:00:22]} 30. Kg3 {[%clk 0:00:29]}  Rdc8 {[%clk 0:00:16]} 31. Nf4 {[%clk 0:00:28]}  Qf5 {[%clk 0:00:15]} 32. Rd1 {[%clk 0:00:21]}  f6 {[%clk 0:00:08]} 33. Rd4 {[%clk 0:00:10]}  e5 {[%clk 0:00:07]} 34. Qh7+ {[%clk 0:00:10]}  Kf7 {[%clk 0:00:07]} 35. Rd5 {[%clk 0:00:07]}  exf4+ {[%clk 0:00:07]} 36. Bxf4 {[%clk 0:00:07]}  Qxd5 {[%clk 0:00:07]} 37. Re1 {[%clk 0:00:08]}  Qf5 {[%clk 0:00:04]} 38. Qh3 {[%clk 0:00:09]}  Qxh3+ {[%clk 0:00:04]} 39. gxh3 {[%clk 0:00:10]}  g5 {[%clk 0:00:04]} 40. Be3 {[%clk 0:00:11]}  Rxb2 {[%clk 0:00:04]} 41. Bf2 {[%clk 0:00:12]}  Rbc2 {[%clk 0:00:05]} 42. h4 {[%clk 0:00:12]}  gxh4+ {[%clk 0:00:05]} 43. Kg2 {[%clk 0:00:13]}  h3+ {[%clk 0:00:05]} 44. Kg3 {[%clk 0:00:14]}  h2 {[%clk 0:00:05]} 45. Be3 {[%clk 0:00:15]}  R2c3 {[%clk 0:00:05]} 46. Rh1 {[%clk 0:00:16]}  Rxe3 {[%clk 0:00:05]} 47. Rxh2 {[%clk 0:00:17]}  Bc6 {[%clk 0:00:06]} 0-1


[Site "https://www.chess.com"]

[Event "Titled Tuesday Blitz December 13 Late 2022"]
[White "Rosenberg, Evan S"]
[Black "Curtis, John"]
[WhiteFideId "2019299"]
[BlackFideId "3200256"]
[WhiteElo "2418"]
[BlackElo "2203"]
[Result "1-0"]
[Round "05"]
[TimeControl "180+1"]
[Date "2022.12.14"]
[WhiteClock "0:00:58"]
[BlackClock "0:00:51"]

1. d4 {[%clk 0:03:00]}  Nf6 {[%clk 0:02:59]} 2. Nf3 {[%clk 0:03:00]}  g6 {[%clk 0:02:58]} 3. Nc3 {[%clk 0:03:01]}  d5 {[%clk 0:02:57]} 4. Bf4 {[%clk 0:03:01]}  c6 {[%clk 0:02:56]} 5. h3 {[%clk 0:03:00]}  Bg7 {[%clk 0:02:56]} 6. e3 {[%clk 0:03:01]}  Ne4 {[%clk 0:02:56]} 7. Nxe4 {[%clk 0:02:57]}  dxe4 {[%clk 0:02:56]} 8. Nd2 {[%clk 0:02:57]}  g5 {[%clk 0:02:56]} 9. Bh2 {[%clk 0:02:55]}  Bf5 {[%clk 0:02:47]} 10. Bc4 {[%clk 0:02:47]}  Nd7 {[%clk 0:02:35]} 11. Qh5 {[%clk 0:02:42]}  e6 {[%clk 0:02:26]} 12. Bb3 {[%clk 0:02:21]}  g4 {[%clk 0:02:26]} 13. hxg4 {[%clk 0:02:18]}  Bg6 {[%clk 0:02:26]} 14. Qh3 {[%clk 0:02:11]}  h5 {[%clk 0:02:17]} 15. Bd6 {[%clk 0:02:08]}  Nf6 {[%clk 0:02:06]} 16. Qg3 {[%clk 0:02:07]}  hxg4 {[%clk 0:01:56]} 17. Rxh8+ {[%clk 0:02:04]}  Bxh8 {[%clk 0:01:56]} 18. O-O-O {[%clk 0:02:01]}  Bf5 {[%clk 0:01:54]} 19. Rh1 {[%clk 0:02:00]}  Bg7 {[%clk 0:01:48]} 20. Be5 {[%clk 0:01:48]}  Qd7 {[%clk 0:01:30]} 21. Nc4 {[%clk 0:01:36]}  Bg6 {[%clk 0:01:17]} 22. Nd6+ {[%clk 0:01:35]}  Kf8 {[%clk 0:01:17]} 23. Qf4 {[%clk 0:01:18]}  Ng8 {[%clk 0:01:04]} 24. Nxe4 {[%clk 0:01:09]}  Bxe4 {[%clk 0:00:52]} 25. Qxe4 {[%clk 0:01:09]}  f5 {[%clk 0:00:51]} 26. Bxg7+ {[%clk 0:00:58]}  Qxg7 {[%clk 0:00:51]} 27. Qxe6 {[%clk 0:00:58]} 1-0


[Site "https://www.chess.com"]

[Event "Titled Tuesday Blitz December 13 Late 2022"]
[White "Sjugirov, Sanan"]
[Black "Holt, Conrad"]
[WhiteFideId "4189302"]
[BlackFideId "2034387"]
[WhiteElo "2613"]
[BlackElo "2592"]
[Result "1/2-1/2"]
[Round "05"]
[TimeControl "180+1"]
[Date "2022.12.13"]
[WhiteClock "0:00:06"]
[BlackClock "0:00:10"]

1. e4 {[%clk 0:02:55]}  e6 {[%clk 0:02:59]} 2. d4 {[%clk 0:02:54]}  d5 {[%clk 0:03:00]} 3. e5 {[%clk 0:02:48]}  c5 {[%clk 0:02:59]} 4. c3 {[%clk 0:02:49]}  Bd7 {[%clk 0:02:58]} 5. Nf3 {[%clk 0:02:48]}  Nc6 {[%clk 0:02:58]} 6. Be2 {[%clk 0:02:48]}  Nge7 {[%clk 0:02:55]} 7. O-O {[%clk 0:02:46]}  Nf5 {[%clk 0:02:54]} 8. dxc5 {[%clk 0:02:39]}  Bxc5 {[%clk 0:02:54]} 9. b4 {[%clk 0:02:36]}  Bb6 {[%clk 0:02:51]} 10. Bd3 {[%clk 0:02:32]}  Nh4 {[%clk 0:02:48]} 11. Nbd2 {[%clk 0:02:29]}  Rc8 {[%clk 0:02:41]} 12. Nxh4 {[%clk 0:02:25]}  Qxh4 {[%clk 0:02:41]} 13. Nf3 {[%clk 0:02:25]}  Qh5 {[%clk 0:02:37]} 14. Re1 {[%clk 0:02:18]}  O-O {[%clk 0:02:29]} 15. Be3 {[%clk 0:02:11]}  Bc7 {[%clk 0:02:24]} 16. Bd4 {[%clk 0:01:22]}  Nxd4 {[%clk 0:02:17]} 17. cxd4 {[%clk 0:01:22]}  Bd8 {[%clk 0:02:06]} 18. Qd2 {[%clk 0:01:19]}  Be7 {[%clk 0:02:04]} 19. a3 {[%clk 0:01:19]}  Rc7 {[%clk 0:01:45]} 20. Rac1 {[%clk 0:01:17]}  Rfc8 {[%clk 0:01:40]} 21. Rxc7 {[%clk 0:01:17]}  Rxc7 {[%clk 0:01:41]} 22. Rc1 {[%clk 0:01:18]}  Rc6 {[%clk 0:01:40]} 23. Rxc6 {[%clk 0:01:11]}  Bxc6 {[%clk 0:01:39]} 24. Qc3 {[%clk 0:01:07]}  Qh6 {[%clk 0:01:33]} 25. b5 {[%clk 0:01:00]}  Be8 {[%clk 0:01:26]} 26. a4 {[%clk 0:00:52]}  Kf8 {[%clk 0:01:13]} 27. g3 {[%clk 0:00:51]}  f6 {[%clk 0:01:09]} 28. Qc8 {[%clk 0:00:43]}  fxe5 {[%clk 0:00:56]} 29. Nxe5 {[%clk 0:00:41]}  Bd6 {[%clk 0:00:51]} 30. Nf3 {[%clk 0:00:19]}  b6 {[%clk 0:00:44]} 31. h4 {[%clk 0:00:19]}  Qf6 {[%clk 0:00:36]} 32. Ng5 {[%clk 0:00:18]}  Ke7 {[%clk 0:00:37]} 33. Bxh7 {[%clk 0:00:10]}  Bd7 {[%clk 0:00:28]} 34. Qg8 {[%clk 0:00:06]}  Qxd4 {[%clk 0:00:16]} 35. Qf7+ {[%clk 0:00:05]}  Kd8 {[%clk 0:00:16]} 36. Nxe6+ {[%clk 0:00:05]}  Bxe6 {[%clk 0:00:16]} 37. Qxe6 {[%clk 0:00:06]}  Bxg3 {[%clk 0:00:14]} 38. Qf5 {[%clk 0:00:03]}  Bd6 {[%clk 0:00:12]} 39. h5 {[%clk 0:00:02]}  Qd1+ {[%clk 0:00:11]} 40. Kg2 {[%clk 0:00:03]}  Qd4 {[%clk 0:00:11]} 41. Bg6 {[%clk 0:00:03]}  Qe4+ {[%clk 0:00:11]} 42. Qxe4 {[%clk 0:00:03]}  dxe4 {[%clk 0:00:12]} 43. Bxe4 {[%clk 0:00:04]}  Ke7 {[%clk 0:00:13]} 44. Kf3 {[%clk 0:00:04]}  Kf6 {[%clk 0:00:13]} 45. Kg4 {[%clk 0:00:05]}  Bc5 {[%clk 0:00:13]} 46. f4 {[%clk 0:00:06]}  Be3 {[%clk 0:00:13]} 47. Bg6 {[%clk 0:00:06]}  Bc1 {[%clk 0:00:14]} 48. Kf3 {[%clk 0:00:06]}  Bd2 {[%clk 0:00:14]} 49. Ke4 {[%clk 0:00:07]}  Bc1 {[%clk 0:00:15]} 50. f5 {[%clk 0:00:07]}  Bb2 {[%clk 0:00:15]} 51. Kd5 {[%clk 0:00:07]}  Ke7 {[%clk 0:00:14]} 52. Kc6 {[%clk 0:00:08]}  Bc3 {[%clk 0:00:10]} 53. Kb7 {[%clk 0:00:09]}  Kd7 {[%clk 0:00:11]} 54. Bf7 {[%clk 0:00:07]}  Kd6 {[%clk 0:00:11]} 55. Be8 {[%clk 0:00:06]}  Ke7 {[%clk 0:00:11]} 56. Bc6 {[%clk 0:00:07]}  Kd8 {[%clk 0:00:11]} 57. Bd5 {[%clk 0:00:06]}  Kd7 {[%clk 0:00:11]} 58. Be6+ {[%clk 0:00:06]}  Kd8 {[%clk 0:00:10]} 59. Bc4 {[%clk 0:00:05]}  Bd2 {[%clk 0:00:09]} 60. Be2 {[%clk 0:00:06]}  Bc3 {[%clk 0:00:09]} 61. Bg4 {[%clk 0:00:06]}  Bd2 {[%clk 0:00:08]} 62. Kxa7 {[%clk 0:00:02]}  Kc7 {[%clk 0:00:08]} 63. a5 {[%clk 0:00:01]}  Bxa5 {[%clk 0:00:08]} 64. f6 {[%clk 0:00:01]}  gxf6 {[%clk 0:00:08]} 65. h6 {[%clk 0:00:02]}  f5 {[%clk 0:00:08]} 66. Bxf5 {[%clk 0:00:02]}  Bd2 {[%clk 0:00:07]} 67. h7 {[%clk 0:00:03]}  Bc3 {[%clk 0:00:07]} 68. Ka6 {[%clk 0:00:03]}  Bh8 {[%clk 0:00:08]} 69. Bg6 {[%clk 0:00:04]}  Bg7 {[%clk 0:00:08]} 70. Bf5 {[%clk 0:00:05]}  Bh8 {[%clk 0:00:09]} 71. Bg6 {[%clk 0:00:06]}  Bg7 {[%clk 0:00:09]} 72. Bf5 {[%clk 0:00:06]}  Bh8 {[%clk 0:00:10]} 1/2-1/2


[Site "https://www.chess.com"]

[Event "Titled Tuesday Blitz December 13 Late 2022"]
[White "Tabatabaei, M. Amin"]
[Black "Rorrer, Grayson"]
[WhiteFideId "12521213"]
[BlackFideId "30944996"]
[WhiteElo "2551"]
[BlackElo "2200"]
[Result "0-1"]
[Round "05"]
[TimeControl "180+1"]
[Date "2022.12.13"]
[WhiteClock "0:00:03"]
[BlackClock "0:00:05"]

1. b3 {[%clk 0:03:00]}  e5 {[%clk 0:02:49]} 2. Bb2 {[%clk 0:03:01]}  Nc6 {[%clk 0:02:49]} 3. Nf3 {[%clk 0:03:01]}  e4 {[%clk 0:02:46]} 4. Nd4 {[%clk 0:03:00]}  Nxd4 {[%clk 0:02:46]} 5. Bxd4 {[%clk 0:03:01]}  d5 {[%clk 0:02:47]} 6. e3 {[%clk 0:03:01]}  Nf6 {[%clk 0:02:46]} 7. Be2 {[%clk 0:03:02]}  Bf5 {[%clk 0:02:46]} 8. O-O {[%clk 0:03:01]}  c6 {[%clk 0:02:47]} 9. d3 {[%clk 0:03:00]}  Be7 {[%clk 0:02:47]} 10. c4 {[%clk 0:02:45]}  exd3 {[%clk 0:02:26]} 11. Bxd3 {[%clk 0:02:46]}  Bxd3 {[%clk 0:02:26]} 12. Qxd3 {[%clk 0:02:46]}  dxc4 {[%clk 0:02:27]} 13. Qxc4 {[%clk 0:02:47]}  O-O {[%clk 0:02:26]} 14. Nc3 {[%clk 0:02:47]}  Qa5 {[%clk 0:02:12]} 15. Rad1 {[%clk 0:02:47]}  Rfd8 {[%clk 0:02:04]} 16. h3 {[%clk 0:02:46]}  Nd5 {[%clk 0:01:57]} 17. Nxd5 {[%clk 0:02:41]}  Rxd5 {[%clk 0:01:57]} 18. Bc3 {[%clk 0:02:39]}  Qc5 {[%clk 0:01:52]} 19. Rxd5 {[%clk 0:02:37]}  cxd5 {[%clk 0:01:47]} 20. Qxc5 {[%clk 0:02:36]}  Bxc5 {[%clk 0:01:48]} 21. Rd1 {[%clk 0:02:37]}  Rd8 {[%clk 0:01:45]} 22. g4 {[%clk 0:02:36]}  f6 {[%clk 0:01:43]} 23. Kg2 {[%clk 0:02:37]}  Kf7 {[%clk 0:01:44]} 24. h4 {[%clk 0:02:35]}  Ke6 {[%clk 0:01:42]} 25. Kf3 {[%clk 0:02:36]}  g6 {[%clk 0:01:42]} 26. Bb2 {[%clk 0:02:33]}  Bd6 {[%clk 0:01:41]} 27. Rc1 {[%clk 0:02:31]}  Be5 {[%clk 0:01:37]} 28. Ba3 {[%clk 0:01:47]}  d4 {[%clk 0:01:19]} 29. Rd1 {[%clk 0:01:42]}  Rd5 {[%clk 0:01:13]} 30. exd4 {[%clk 0:01:11]}  Rxd4 {[%clk 0:01:12]} 31. Rxd4 {[%clk 0:01:12]}  Bxd4 {[%clk 0:01:13]} 32. Ke2 {[%clk 0:01:12]}  h5 {[%clk 0:00:57]} 33. f3 {[%clk 0:01:12]}  Be5 {[%clk 0:00:46]} 34. Bc5 {[%clk 0:01:11]}  Bg3 {[%clk 0:00:37]} 35. Bxa7 {[%clk 0:01:11]}  Bxh4 {[%clk 0:00:38]} 36. gxh5 {[%clk 0:01:08]}  gxh5 {[%clk 0:00:38]} 37. a4 {[%clk 0:01:06]}  Bg3 {[%clk 0:00:36]} 38. Kf1 {[%clk 0:01:06]}  Bd6 {[%clk 0:00:34]} 39. Kg2 {[%clk 0:01:06]}  Kf5 {[%clk 0:00:35]} 40. Bd4 {[%clk 0:01:04]}  Be5 {[%clk 0:00:22]} 41. Bc5 {[%clk 0:00:54]}  Bf4 {[%clk 0:00:20]} 42. Bb4 {[%clk 0:00:47]}  Ke6 {[%clk 0:00:20]} 43. Bc3 {[%clk 0:00:48]}  Be5 {[%clk 0:00:20]} 44. Be1 {[%clk 0:00:44]}  Kd5 {[%clk 0:00:14]} 45. Bf2 {[%clk 0:00:44]}  Bd4 {[%clk 0:00:13]} 46. Be1 {[%clk 0:00:45]}  Be5 {[%clk 0:00:13]} 47. Kh3 {[%clk 0:00:44]}  Kd4 {[%clk 0:00:14]} 48. a5 {[%clk 0:00:36]}  Ke3 {[%clk 0:00:11]} 49. Kg2 {[%clk 0:00:30]}  Ke2 {[%clk 0:00:10]} 50. Bf2 {[%clk 0:00:27]}  Bc7 {[%clk 0:00:05]} 51. b4 {[%clk 0:00:26]}  Kd3 {[%clk 0:00:05]} 52. Kh3 {[%clk 0:00:21]}  Ke2 {[%clk 0:00:06]} 53. Bg3 {[%clk 0:00:08]}  Bd8 {[%clk 0:00:05]} 54. Kg2 {[%clk 0:00:08]}  f5 {[%clk 0:00:05]} 55. Be5 {[%clk 0:00:03]}  h4 {[%clk 0:00:05]} 56. Bd6 {[%clk 0:00:02]}  h3+ {[%clk 0:00:04]} 57. Kxh3 {[%clk 0:00:03]}  Kxf3 {[%clk 0:00:05]} 58. Be5 {[%clk 0:00:03]}  Ke4 {[%clk 0:00:04]} 59. Bg7 {[%clk 0:00:03]}  Kd5 {[%clk 0:00:03]} 60. Bf8 {[%clk 0:00:03]}  Kc4 {[%clk 0:00:03]} 61. Kg2 {[%clk 0:00:03]}  Bf6 {[%clk 0:00:03]} 62. Kf3 {[%clk 0:00:04]}  Bc3 {[%clk 0:00:04]} 63. Kf4 {[%clk 0:00:03]}  Bxb4 {[%clk 0:00:03]} 64. Bg7 {[%clk 0:00:02]}  Bxa5 {[%clk 0:00:03]} 65. Kxf5 {[%clk 0:00:03]}  Bc3 {[%clk 0:00:04]} 66. Bf8 {[%clk 0:00:02]}  b5 {[%clk 0:00:04]} 67. Ke4 {[%clk 0:00:03]}  Bd4 {[%clk 0:00:05]} 68. Be7 {[%clk 0:00:03]}  Bc5 {[%clk 0:00:05]} 69. Bf6 {[%clk 0:00:02]}  b4 {[%clk 0:00:06]} 70. Bb2 {[%clk 0:00:01]}  Kb3 {[%clk 0:00:06]} 71. Be5 {[%clk 0:00:01]}  Kc2 {[%clk 0:00:06]} 72. Kd5 {[%clk 0:00:02]}  Be3 {[%clk 0:00:06]} 73. Kc4 {[%clk 0:00:03]}  b3 {[%clk 0:00:06]} 74. Bc3 {[%clk 0:00:03]}  Bf4 {[%clk 0:00:05]} 75. Bf6 {[%clk 0:00:03]}  Bc1 {[%clk 0:00:05]} 76. Bd4 {[%clk 0:00:03]}  Bb2 {[%clk 0:00:05]} 77. Bc5 {[%clk 0:00:03]}  Be5 {[%clk 0:00:05]} 78. Ba3 {[%clk 0:00:04]}  Bf4 {[%clk 0:00:05]} 79. Kd5 {[%clk 0:00:02]}  Bg5 {[%clk 0:00:04]} 80. Kc4 {[%clk 0:00:02]}  Bh6 {[%clk 0:00:04]} 81. Kd5 {[%clk 0:00:03]}  Bf8 {[%clk 0:00:05]} 0-1


[Site "https://www.chess.com"]